bitfinex-derivatives/quotes_BTCF0:USTF0_20250719
["timestamp","ask_amount","ask_price","bid_price","bid_amount"]
[1752947638070,0.28182604,117960.0,117950.0,0.80936935]
[1752947641970,0.28182604,117960.0,117950.0,0.44856935]
[1752947642171,0.28182604,117960.0,117950.0,0.80936935]
[1752947643565,0.2645159,117960.0,117950.0,0.80936935]
[1752947643870,0.28183239,117960.0,117950.0,0.80936935]
[1752947645273,0.28183239,117960.0,117950.0,0.80952898]
[1752947652375,0.28183239,117960.0,117950.0,0.44872898]
[1752947652574,0.28183239,117960.0,117950.0,0.80952898]
[1752947653881,0.11235649,117960.0,117950.0,0.80952898]
[1752947654779,0.11235649,117960.0,117950.0,0.44872898]
[1752947654979,0.11235649,117960.0,117950.0,0.80952898]
[1752947656780,0.11235649,117960.0,117950.0,0.44872898]
[1752947656981,0.11235649,117960.0,117950.0,0.80952898]
[1752947658984,0.28183239,117960.0,117950.0,0.80952898]
[1752947659486,0.28183239,117960.0,117950.0,0.44872898]
[1752947659784,0.28183239,117960.0,117950.0,0.80952898]
[1752947660282,0.44493748,117960.0,117950.0,0.80952898]
[1752947660482,0.28182852,117960.0,117950.0,0.80952898]
[1752947660778,1.5486787,117960.0,117950.0,0.18927389]
[1752947661178,1.5486787,117960.0,117950.0,0.01978359]
[1752947661376,0.2152347,117940.0,117930.0,0.2972918]
[1752947661578,1.20506802,117940.0,117930.0,0.2972918]
[1752947661778,1.04196293,117940.0,117930.0,0.47681689]
[1752947661981,1.04196293,117940.0,117930.0,0.3215518]
[1752947662177,1.04196293,117940.0,117930.0,0.3400718]
[1752947662884,0.87885784,117940.0,117930.0,0.50317689]
[1752947663389,0.87885784,117940.0,117930.0,0.86397689]
[1752947664485,0.87985784,117940.0,117930.0,0.86397689]
[1752947665384,1.04296293,117940.0,117930.0,0.86397689]
[1752947667893,0.87985784,117940.0,117930.0,0.86397689]
[1752947668983,0.06025314,117940.0,117930.0,1.02708198]
[1752947669186,0.64017314,117940.0,117930.0,1.02708198]
[1752947671185,0.63917314,117940.0,117930.0,1.02708198]
[1752947672384,0.03474314,117940.0,117930.0,1.02708198]
[1752947673290,0.03474314,117940.0,117930.0,1.38708198]
[1752947673883,0.03474314,117940.0,117930.0,1.02708198]
[1752947674495,0.02451,117950.0,117940.0,0.1695046]
[1752947674786,0.01739997,117950.0,117940.0,1.10542987]
[1752947675090,0.01739997,117950.0,117940.0,0.94232478]
[1752947677694,0.01739997,117950.0,117940.0,1.29232478]
[1752947678194,0.01739997,117950.0,117940.0,0.94232478]
[1752947678791,0.04190997,117950.0,117940.0,0.94232478]
[1752947678995,0.04190997,117950.0,117940.0,1.32232478]
[1752947679295,0.04190997,117950.0,117940.0,0.94232478]
[1752947683297,0.01739997,117950.0,117940.0,1.46542987]
[1752947683601,0.01739997,117950.0,117940.0,1.10542987]
[1752947683901,0.01739997,117950.0,117940.0,1.41542987]
[1752947685106,0.01739997,117950.0,117940.0,1.41742987]
[1752947685307,0.01739997,117950.0,117940.0,1.41842987]
[1752947686504,0.03464318,117950.0,117940.0,1.41842987]
[1752947687705,0.03464318,117950.0,117940.0,1.10842987]
[1752947689009,0.05915318,117950.0,117940.0,1.10842987]
[1752947689205,0.05915318,117950.0,117940.0,0.94532478]
[1752947692711,0.05915318,117950.0,117940.0,0.58452478]
[1752947692911,0.05915318,117950.0,117940.0,1.30612478]
[1752947694607,0.05915318,117950.0,117940.0,1.88596478]
[1752947695811,0.05915318,117950.0,117940.0,2.04906987]
[1752947696413,0.04175321,117950.0,117940.0,2.04906987]
[1752947700410,0.04175321,117950.0,117940.0,1.46922987]
[1752947700616,0.04175321,117950.0,117940.0,0.94532478]
[1752947700617,0.27771341,117950.0,117940.0,0.94532478]
[1752947700810,0.27771341,117950.0,117940.0,1.52512478]
[1752947701005,0.27771341,117950.0,117940.0,0.94532478]
[1752947701211,0.4408185,117950.0,117940.0,0.76369969]
[1752947701611,0.4408185,117950.0,117940.0,0.92680478]
[1752947701821,0.27771341,117950.0,117940.0,0.92680478]
[1752947702018,0.4408185,117950.0,117940.0,0.92480478]
[1752947702315,0.4408185,117950.0,117940.0,0.92380478]
[1752947702520,0.27771341,117950.0,117940.0,0.92380478]
[1752947702821,0.27771341,117950.0,117940.0,0.5975946]
[1752947703023,0.27771341,117950.0,117940.0,0.92380478]
[1752947704022,0.4408185,117950.0,117940.0,0.76069969]
[1752947704224,0.4408185,117950.0,117940.0,0.34871969]
[1752947704412,1.0206185,117950.0,117940.0,0.33260969]
[1752947705317,1.39001398,117950.0,117940.0,0.33260969]
[1752947705622,1.3824185,117950.0,117940.0,0.33260969]
[1752947706324,1.44538509,117950.0,117940.0,0.33260969]
[1752947709217,1.08458509,117950.0,117940.0,0.33260969]
[1752947709424,1.44538509,117950.0,117940.0,0.33260969]
[1752947711222,1.44540622,117950.0,117940.0,0.33260969]
[1752947712125,1.44540622,117950.0,117940.0,0.1695046]
[1752947712326,1.08460622,117950.0,117940.0,0.33260969]
[1752947712825,1.44540622,117950.0,117940.0,0.33260969]
[1752947713433,1.44540622,117950.0,117940.0,0.1695046]
[1752947713726,1.44540622,117950.0,117940.0,0.33260969]
[1752947713917,1.44540622,117950.0,117940.0,0.1695046]
[1752947714123,1.44540622,117950.0,117940.0,0.33260969]
[1752947714829,1.38443963,117950.0,117940.0,0.33260969]
[1752947723329,1.02363963,117950.0,117940.0,0.33260969]
[1752947724035,1.38443963,117950.0,117940.0,0.33260969]
[1752947724338,1.38443912,117950.0,117940.0,0.33260969]
[1752947726034,1.22133403,117950.0,117940.0,0.33260969]
[1752947726235,1.38443912,117950.0,117940.0,0.33260969]
[1752947728338,1.38443912,117950.0,117940.0,0.1695046]
[1752947728535,0.08926,117940.0,117930.0,0.01517]
[1752947728738,0.2587788,117930.0,117920.0,0.44224069]
[1752947728934,1.39724564,117930.0,117920.0,0.44224069]
[1752947729232,1.03644564,117930.0,117920.0,0.44224069]
[1752947729633,1.39724564,117930.0,117920.0,0.43494069]
[1752947730139,1.39724564,117930.0,117920.0,0.39409069]
[1752947730433,0.1969532,117920.0,117910.0,0.34808785]
[1752947730639,0.43916212,117920.0,117910.0,0.52840294]
[1752947730834,0.43916212,117920.0,117910.0,0.52702749]
[1752947731135,0.27605703,117920.0,117910.0,0.52702749]
[1752947731740,0.27605703,117920.0,117910.0,0.52902749]
[1752947731941,0.27605703,117920.0,117910.0,0.53002749]
[1752947733645,0.27605703,117920.0,117910.0,0.53850597]
[1752947733848,0.27605703,117920.0,117910.0,0.53002749]
[1752947736246,0.85593703,117920.0,117910.0,0.53002749]
[1752947736545,0.85593703,117920.0,117910.0,0.54701749]
[1752947736947,0.27605703,117920.0,117910.0,0.54701749]
[1752947737146,0.85593703,117920.0,117910.0,0.54701749]
[1752947738548,0.92491931,117920.0,117910.0,0.55539139]
[1752947740251,0.92491931,117920.0,117910.0,0.3922863]
[1752947740448,0.92491931,117920.0,117910.0,0.55539139]
[1752947744752,0.92491931,117920.0,117910.0,0.3922863]
[1752947744950,0.92491931,117920.0,117910.0,0.55539139]
[1752947747052,0.34503931,117920.0,117910.0,0.71849648]
[1752947747246,0.92491931,117920.0,117910.0,0.71849648]
[1752947750254,0.92491931,117920.0,117910.0,0.3922863]
[1752947750454,0.92491931,117920.0,117910.0,0.71849648]
[1752947750854,0.92491931,117920.0,117910.0,0.55539139]
[1752947751354,0.92491931,117920.0,117910.0,0.71849648]
[1752947753956,0.92491931,117920.0,117910.0,0.55539139]
[1752947754758,0.92491931,117920.0,117910.0,0.91619139]
[1752947756864,0.92491931,117920.0,117910.0,0.55539139]
[1752947758462,0.92491931,117920.0,117910.0,0.53002749]
[1752947758868,0.92491931,117920.0,117910.0,0.52272749]
[1752947759057,1.0880244,117920.0,117910.0,0.3148624]
[1752947759263,1.0880244,117920.0,117910.0,0.47796749]
[1752947760166,1.0880244,117920.0,117910.0,0.39319529]
[1752947760961,1.25112949,117920.0,117910.0,0.003]
[1752947761162,1.61192949,117920.0,117910.0,0.003]
[1752947761867,1.67289608,117920.0,117910.0,0.003]
[1752947762363,1.50979099,117920.0,117910.0,0.1725471]
[1752947764370,1.67289608,117920.0,117910.0,0.1725471]
[1752947764970,1.4488244,117920.0,117910.0,0.1725471]
[1752947765171,1.45721459,117920.0,117910.0,0.1725471]
[1752947765471,1.4488244,117920.0,117910.0,0.1725471]
[1752947766469,1.61192949,117920.0,117910.0,0.1725471]
[1752947766769,1.4488244,117920.0,117910.0,0.1725471]
[1752947768077,1.28571931,117920.0,117910.0,0.1725471]
[1752947768270,1.4488244,117920.0,117910.0,0.1725471]
[1752947768874,1.44884601,117920.0,117910.0,0.1725471]
[1752947769576,1.6119511,117920.0,117910.0,0.1725471]
[1752947771176,1.6119511,117920.0,117910.0,0.003]
[1752947773077,1.6119511,117920.0,117910.0,0.172547]
[1752947774072,1.28574092,117920.0,117910.0,0.172547]
[1752947774268,1.6119511,117920.0,117910.0,0.003]
[1752947784086,1.67291769,117920.0,117910.0,0.003]
[1752947785981,0.2009612,117900.0,117890.0,0.37506239]
[1752947786189,1.03597163,117900.0,117890.0,0.2119573]
[1752947786385,1.03597163,117900.0,117890.0,0.37506239]
[1752947786683,1.03597163,117900.0,117890.0,0.34864979]
[1752947786885,1.04434578,117900.0,117890.0,0.35238979]
[1752947787683,1.40514578,117900.0,117890.0,0.01972]
[1752947787879,0.2586356,117890.0,117880.0,0.2198314]
[1752947788184,0.43902613,117890.0,117880.0,0.38293649]
[1752947788989,0.43902613,117890.0,117880.0,0.21335509]
[1752947789188,0.79982613,117890.0,117880.0,0.16310509]
[1752947789593,0.79982613,117890.0,117880.0,0.16710509]
[1752947789788,0.79982613,117890.0,117880.0,0.01998]
[1752947789987,0.79982613,117890.0,117880.0,0.02372]
[1752947790187,0.27592104,117890.0,117880.0,0.35641529]
[1752947790386,0.43902613,117890.0,117880.0,0.37947529]
[1752947790588,0.43902613,117890.0,117880.0,0.38694529]
[1752947790783,0.27592104,117890.0,117880.0,0.38694529]
[1752947790989,0.43902613,117890.0,117880.0,0.2238402]
[1752947791185,0.43902613,117890.0,117880.0,0.38694529]
[1752947791387,0.63672104,117890.0,117880.0,0.38394529]
[1752947791694,0.79982613,117890.0,117880.0,0.39923529]
[1752947791993,0.7998681,117890.0,117880.0,0.39923529]
[1752947792694,0.7998681,117890.0,117880.0,0.2361302]
[1752947792991,0.7998681,117890.0,117880.0,0.39923529]
[1752947793389,0.4390681,117890.0,117880.0,0.39923529]
[1752947794892,0.27596301,117890.0,117880.0,0.39923529]
[1752947795089,0.4390681,117890.0,117880.0,0.39923529]
[1752947797797,0.7998681,117890.0,117880.0,0.39923529]
[1752947798098,0.4390681,117890.0,117880.0,0.39923529]
[1752947800201,0.27596301,117890.0,117880.0,0.39923529]
[1752947800500,0.4390681,117890.0,117880.0,0.39923529]
[1752947803200,0.7998681,117890.0,117880.0,0.39923529]
[1752947803396,0.7998681,117890.0,117880.0,0.2361302]
[1752947803594,0.7998681,117890.0,117880.0,0.39923529]
[1752947810509,0.63676301,117890.0,117880.0,0.39923529]
[1752947810709,0.7998681,117890.0,117880.0,0.2361302]
[1752947810911,0.7998681,117890.0,117880.0,0.39923529]
[1752947811310,0.7998681,117890.0,117880.0,0.2361302]
[1752947811510,0.7998681,117890.0,117880.0,0.39923529]
[1752947811810,0.7998681,117890.0,117880.0,0.2361302]
[1752947812013,0.7998681,117890.0,117880.0,0.39923529]
[1752947812712,0.7998681,117890.0,117880.0,0.39933507]
[1752947813707,0.7998681,117890.0,117880.0,0.23622998]
[1752947813911,0.7998681,117890.0,117880.0,0.39933507]
[1752947814112,0.4390681,117890.0,117880.0,0.38404507]
[1752947814313,0.4390681,117890.0,117880.0,0.36098507]
[1752947816114,0.4390681,117890.0,117880.0,0.19787998]
[1752947816510,0.7998681,117890.0,117880.0,0.00109978]
[1752947816809,0.96297319,117890.0,117880.0,0.00109978]
[1752947817015,0.7998681,117890.0,117880.0,0.00109978]
[1752947817204,0.63676301,117890.0,117880.0,0.00109978]
[1752947817405,0.7998681,117890.0,117880.0,0.00109978]
[1752947818914,0.63676301,117890.0,117880.0,0.00109978]
[1752947819108,0.63676301,117890.0,117870.0,0.41750489]
[1752947819109,0.6302925,117890.0,117870.0,0.1695978]
[1752947819307,0.27699103,117860.0,117850.0,5.55345509]
[1752947819507,1.02701612,117860.0,117850.0,5.72308819]
[1752947819710,1.04438295,117860.0,117850.0,5.72308819]
[1752947820014,1.04438295,117860.0,117850.0,5.19265509]
[1752947820015,0.88127786,117860.0,117850.0,5.19265509]
[1752947820320,0.88127786,117860.0,117850.0,5.36228809]
[1752947821116,0.88127786,117860.0,117850.0,5.203183]
[1752947821320,1.04438295,117860.0,117850.0,5.203183]
[1752947821513,1.04438295,117860.0,117850.0,5.36628809]
[1752947821712,0.88127786,117860.0,117850.0,5.36628809]
[1752947821918,1.04438295,117860.0,117850.0,5.36628809]
[1752947822217,0.88127786,117860.0,117850.0,5.207183]
[1752947822417,0.88175786,117860.0,117850.0,5.38493809]
[1752947822719,0.88191786,117860.0,117850.0,5.90884318]
[1752947822922,0.88191786,117860.0,117850.0,5.74573809]
[1752947823221,0.88191786,117860.0,117850.0,5.90884318]
[1752947823518,0.87452786,117860.0,117850.0,5.74573809]
[1752947823716,0.10279475,117860.0,117850.0,6.21884318]
[1752947823917,0.00739,117870.0,117860.0,0.2482486]
[1752947823918,0.781435,117870.0,117860.0,0.2482486]
[1752947824126,0.781435,117870.0,117860.0,0.93525878]
[1752947824535,0.61183,117870.0,117860.0,0.93525878]
[1752947824823,0.7814342,117870.0,117860.0,0.93525878]
[1752947825422,0.7814342,117870.0,117860.0,0.94125878]
[1752947826823,0.8059642,117870.0,117860.0,0.94125878]
[1752947827924,0.8059642,117870.0,117860.0,0.6150486]
[1752947828224,0.8059642,117870.0,117860.0,0.94125878]
[1752947831519,0.7814342,117870.0,117860.0,0.94125878]
[1752947832122,0.8059642,117870.0,117860.0,0.94125878]
[1752947832426,0.7819942,117870.0,117860.0,0.94125878]
[1752947834321,0.61239,117870.0,117860.0,0.94125878]
[1752947834729,0.7819941,117870.0,117860.0,0.94125878]
[1752947834930,0.2177241,117870.0,117860.0,0.94125878]
[1752947835230,0.2490441,117870.0,117860.0,0.94125878]
[1752947835830,0.2662599,117870.0,117860.0,0.94125878]
[1752947837922,0.0408058,117870.0,117860.0,0.94125878]
[1752947838334,0.04080803,117870.0,117860.0,0.94125878]
[1752947838534,0.01721803,117870.0,117860.0,0.94125878]
[1752947839032,0.04080803,117870.0,117860.0,0.94125878]
[1752947839235,0.04080803,117870.0,117860.0,1.30125878]
[1752947839434,0.01721803,117870.0,117860.0,1.46436387]
[1752947839636,0.01721803,117870.0,117860.0,1.30125878]
[1752947841928,0.01749578,117880.0,117870.0,0.1887342]
[1752947842130,0.01749578,117880.0,117870.0,1.25553438]
[1752947842334,0.01749578,117880.0,117870.0,1.84425438]
[1752947843436,0.04005578,117880.0,117870.0,1.86320811]
[1752947843639,0.01749578,117880.0,117870.0,1.86320811]
[1752947844041,0.01749578,117880.0,117870.0,1.86520811]
[1752947845042,0.01749578,117880.0,117870.0,1.86720811]
[1752947845242,0.04005578,117880.0,117870.0,1.86720811]
[1752947848446,0.01749578,117880.0,117870.0,1.86720811]
[1752947848651,0.0715599,117900.0,117890.0,0.241515]
[1752947848847,0.0869999,117900.0,117890.0,0.93550518]
[1752947849049,0.1057999,117900.0,117890.0,0.77240009]
[1752947849552,0.1057999,117900.0,117890.0,1.29630518]
[1752947849752,0.1057999,117900.0,117890.0,1.13320009]
[1752947851054,0.1057999,117900.0,117890.0,1.29630518]
[1752947851455,0.1057999,117900.0,117890.0,1.31488746]
[1752947852158,0.1057999,117900.0,117890.0,1.32337435]
[1752947852958,0.1057999,117900.0,117890.0,1.74878926]
[1752947853960,0.12293507,117900.0,117890.0,1.74878926]
[1752947862263,0.03969517,117900.0,117890.0,2.29189435]
[1752947862460,0.01713517,117900.0,117890.0,2.28189435]
[1752947862763,0.01713517,117900.0,117890.0,2.27189435]
[1752947863555,0.02256,117910.0,117900.0,0.2415011]
[1752947863757,0.03969797,117910.0,117900.0,0.93549128]
[1752947864561,0.06421797,117910.0,117900.0,0.93549128]
[1752947864765,0.07161797,117910.0,117900.0,0.93549128]
[1752947868669,0.01713797,117910.0,117900.0,0.93549128]
[1752947868867,0.01713797,117910.0,117900.0,1.09859637]
[1752947869169,0.01713797,117910.0,117900.0,1.41859637]
[1752947869766,0.03969797,117910.0,117900.0,1.41859637]
[1752947869968,0.03969797,117910.0,117900.0,1.42059637]
[1752947872670,0.03969797,117910.0,117900.0,1.25749128]
[1752947873173,0.03970395,117910.0,117900.0,1.25749128]
[1752947873672,0.03970395,117910.0,117900.0,1.42059637]
[1752947875070,0.03970395,117910.0,117900.0,1.25749128]
[1752947876771,0.08746395,117910.0,117900.0,1.52529128]
[1752947876975,0.27629095,117910.0,117900.0,1.1990811]
[1752947877273,0.27629095,117910.0,117900.0,0.91586128]
[1752947877871,0.27629095,117910.0,117900.0,0.75275619]
[1752947878066,0.27629095,117910.0,117900.0,0.5896511]
[1752947878372,0.27629095,117910.0,117900.0,0.91586128]
[1752947878576,0.27629095,117910.0,117900.0,0.91486128]
[1752947878772,0.27629095,117910.0,117900.0,0.5886511]
[1752947878973,0.27629095,117910.0,117900.0,0.80628923]
[1752947879475,0.27629095,117910.0,117900.0,0.80528923]
[1752947879776,0.86437095,117910.0,117900.0,0.80528923]
[1752947880279,0.69482395,117910.0,117900.0,0.80528923]
[1752947880578,0.69482395,117910.0,117900.0,0.81211923]
[1752947880779,0.86437095,117910.0,117900.0,0.81211923]
[1752947881079,0.86437095,117910.0,117900.0,0.82676923]
[1752947881268,0.86437095,117910.0,117900.0,0.6091311]
[1752947881471,0.86437095,117910.0,117900.0,0.5944811]
[1752947881669,0.86437095,117910.0,117900.0,0.81211923]
[1752947881880,0.86437095,117910.0,117900.0,0.80528923]
[1752947882979,0.86437095,117910.0,117900.0,0.5876511]
[1752947883181,0.86437095,117910.0,117900.0,0.80528923]
[1752947883980,0.86437095,117910.0,117900.0,0.5876511]
[1752947884381,0.86437095,117910.0,117900.0,0.80528923]
[1752947887879,0.86437095,117910.0,117900.0,0.44448923]
[1752947888085,0.86437095,117910.0,117900.0,0.80528923]
[1752947889886,0.86437095,117910.0,117900.0,0.44448923]
[1752947890089,0.86437095,117910.0,117900.0,0.80528923]
[1752947892883,0.86437095,117910.0,117900.0,0.81211923]
[1752947894587,0.86437095,117910.0,117900.0,0.82676923]
[1752947898991,0.86437095,117910.0,117900.0,0.93556836]
[1752947900389,0.86437095,117910.0,117900.0,0.92091836]
[1752947903792,0.86437095,117910.0,117900.0,0.93091836]
[1752947904790,0.86437095,117910.0,117900.0,0.6044811]
[1752947904990,0.86437095,117910.0,117900.0,0.93091836]
[1752947905286,0.86437095,117910.0,117900.0,0.92408836]
[1752947905895,0.86437095,117910.0,117900.0,0.56328836]
[1752947906387,0.86437095,117910.0,117900.0,0.92408836]
[1752947906593,0.86437095,117910.0,117900.0,0.56328836]
[1752947907390,0.27629095,117910.0,117900.0,0.56328836]
[1752947907595,0.86409095,117910.0,117900.0,0.92408836]
[1752947907894,0.86409095,117910.0,117900.0,0.56328836]
[1752947908089,0.86409095,117910.0,117900.0,0.93074836]
[1752947908493,0.86409095,117910.0,117900.0,0.56994836]
[1752947909891,0.86409095,117910.0,117900.0,0.93074836]
[1752947910097,0.86409095,117910.0,117900.0,0.56994836]
[1752947910292,0.86409095,117910.0,117900.0,0.93074836]
[1752947911193,0.86369095,117910.0,117900.0,0.93074836]
[1752947911796,1.02690958,117910.0,117900.0,0.70357973]
[1752947912299,1.02690958,117910.0,117900.0,0.86679836]
[1752947912600,0.86369095,117910.0,117900.0,0.90745836]
[1752947912794,0.86345899,117910.0,117900.0,0.92658836]
[1752947915298,1.02667762,117910.0,117900.0,0.92658836]
[1752947916900,0.86345899,117910.0,117900.0,0.92658836]
[1752947919103,0.10651199,117910.0,117900.0,0.92658836]
[1752947919403,0.86321909,117910.0,117900.0,0.92658836]
[1752947920299,0.09056199,117910.0,117900.0,1.11111699]
[1752947920499,0.62659199,117910.0,117900.0,1.67869836]
[1752947921198,0.63326199,117910.0,117900.0,1.67869836]
[1752947921594,0.63326199,117910.0,117900.0,1.84191699]
[1752947921795,0.63326199,117910.0,117900.0,1.67869836]
[1752947922305,0.63326199,117910.0,117900.0,1.84191699]
[1752947922603,0.65623199,117910.0,117900.0,1.67869836]
[1752947923105,0.65623199,117910.0,117900.0,1.33869836]
[1752947924009,0.65623199,117910.0,117900.0,1.67869836]
[1752947924203,0.64956199,117910.0,117900.0,1.67869836]
[1752947924509,0.62659199,117910.0,117900.0,1.67869836]
[1752947925107,0.65623199,117910.0,117900.0,1.67869836]
[1752947925307,0.04614199,117910.0,117900.0,2.42947699]
[1752947925507,0.03947199,117910.0,117900.0,2.42947699]
[1752947925908,0.03947199,117910.0,117900.0,2.26625836]
[1752947926108,0.04614199,117910.0,117900.0,2.26625836]
[1752947926309,0.06911199,117910.0,117900.0,2.26625836]
[1752947926711,0.06911115,117910.0,117900.0,2.26625836]
[1752947934118,0.06911115,117910.0,117900.0,1.54465836]
[1752947934318,0.06911115,117910.0,117900.0,2.26625836]
[1752947934919,0.08462115,117910.0,117900.0,2.26625836]
[1752947935119,0.10322115,117910.0,117900.0,2.26625836]
[1752947935321,0.10322115,117910.0,117900.0,2.26597836]
[1752947941225,0.04614115,117910.0,117900.0,2.26597836]
[1752947947329,0.04614115,117910.0,117900.0,1.9395411]
[1752947947531,0.04614115,117910.0,117900.0,2.26597836]
[1752947951936,0.03947115,117910.0,117900.0,2.26597836]
[1752947952132,0.10342115,117910.0,117900.0,2.26597836]
[1752947953336,0.10342115,117910.0,117900.0,1.67869836]
[1752947955937,0.10342115,117910.0,117900.0,0.95709836]
[1752947956138,0.10342115,117910.0,117900.0,1.67869836]
[1752947957137,0.27296825,117910.0,117900.0,1.3522611]
[1752947957339,0.27296825,117910.0,117900.0,1.67869836]
[1752947958138,0.10342115,117910.0,117900.0,1.67869836]
[1752947959040,0.10342115,117910.0,117900.0,0.95709836]
[1752947959242,0.10342115,117910.0,117900.0,1.67869836]
[1752947961043,0.10342115,117910.0,117900.0,0.95709836]
[1752947961244,0.10342115,117910.0,117900.0,1.67869836]
[1752947963547,0.01691115,117910.0,117900.0,1.84191699]
[1752947963743,0.06898228,117920.0,117910.0,0.200967]
[1752947963947,0.84733377,117930.0,117920.0,0.1695326]
[1752947964142,1.08655146,117930.0,117920.0,0.56701986]
[1752947964446,1.08654836,117930.0,117920.0,0.92781986]
[1752947964847,0.50038836,117930.0,117920.0,0.92781986]
[1752947965047,1.08642836,117930.0,117920.0,0.92781986]
[1752947965543,0.91691006,117930.0,117920.0,0.92781986]
[1752947965945,1.08642836,117930.0,117920.0,0.92781986]
[1752947966447,1.08842836,117930.0,117920.0,0.92781986]
[1752947967943,1.08942836,117930.0,117920.0,0.92781986]
[1752947968141,0.91991006,117930.0,117920.0,0.92781986]
[1752947969051,0.9888841,117930.0,117920.0,0.92781986]
[1752947972751,0.9868841,117930.0,117920.0,0.92781986]
[1752947972946,0.9858841,117930.0,117920.0,0.92781986]
[1752947974852,1.04685069,117930.0,117920.0,0.92781986]
[1752947975347,1.04685069,117930.0,117920.0,0.6013826]
[1752947975549,1.04685069,117930.0,117920.0,0.92781986]
[1752947975748,1.06368382,117930.0,117920.0,0.92781986]
[1752947975952,1.06368382,117930.0,117920.0,0.56701986]
[1752947976152,1.06368382,117930.0,117920.0,0.92781986]
[1752947978554,1.00271723,117930.0,117920.0,0.92781986]
[1752947980455,0.9858841,117930.0,117920.0,0.92781986]
[1752947982859,0.98555273,117930.0,117920.0,0.92781986]
[1752947989159,0.98555273,117930.0,117920.0,1.28861986]
[1752947989860,0.98555273,117930.0,117920.0,0.56701986]
[1752947990162,0.98555273,117930.0,117920.0,1.28861986]
[1752947990459,0.74450404,117930.0,117920.0,1.28861986]
[1752947991961,0.74450404,117930.0,117920.0,0.56701986]
[1752947992154,0.74450404,117930.0,117920.0,1.28861986]
[1752947993958,0.74450404,117930.0,117920.0,0.56701986]
[1752947994161,0.74450404,117930.0,117920.0,1.28861986]
[1752947994764,0.91402234,117930.0,117920.0,1.28861986]
[1752947994962,0.91402234,117930.0,117920.0,0.92781986]
[1752948000764,1.07724097,117930.0,117920.0,0.1695326]
[1752948000971,1.07724097,117930.0,117920.0,0.33275123]
[1752948001660,0.91402234,117930.0,117920.0,0.1695326]
[1752948001969,0.91402234,117930.0,117920.0,0.33275123]
[1752948001970,1.07724097,117930.0,117920.0,0.33275123]
[1752948002268,1.07824097,117930.0,117920.0,0.1695326]
[1752948002468,1.07824097,117930.0,117920.0,0.33275123]
[1752948002671,1.08024097,117930.0,117920.0,0.33275123]
[1752948003070,1.07824097,117930.0,117920.0,0.33275123]
[1752948003270,1.08124097,117930.0,117920.0,0.33275123]
[1752948003570,1.08024097,117930.0,117920.0,0.33275123]
[1752948003770,1.08224097,117930.0,117920.0,0.33275123]
[1752948006671,0.91902234,117930.0,117920.0,0.33275123]
[1752948006872,1.08224097,117930.0,117920.0,0.33275123]
[1752948008072,0.91902234,117930.0,117920.0,0.33275123]
[1752948008271,1.08224097,117930.0,117920.0,0.33275123]
[1752948009173,1.44304097,117930.0,117920.0,0.33275123]
[1752948009472,1.08224097,117930.0,117920.0,0.33275123]
[1752948009874,1.08224097,117930.0,117920.0,0.34874123]
[1752948010076,0.3364887,117920.0,117910.0,0.1695462]
[1752948010269,0.3364887,117920.0,117910.0,0.33276483]
[1752948010270,0.59129973,117920.0,117910.0,0.33276483]
[1752948011280,0.59129973,117920.0,117910.0,0.16321863]
[1752948011474,0.188297,117910.0,117900.0,0.81686493]
[1752948011775,1.00575563,117910.0,117900.0,0.2819373]
[1752948011977,1.36655563,117910.0,117900.0,0.40276843]
[1752948012278,1.00575563,117910.0,117900.0,0.40276843]
[1752948012777,1.00575563,117910.0,117900.0,0.2395498]
[1752948012978,1.36655563,117910.0,117900.0,0.40276843]
[1752948015083,1.36855563,117910.0,117900.0,0.40276843]
[1752948017578,1.205337,117910.0,117900.0,0.40276843]
[1752948018078,1.36855563,117910.0,117900.0,0.40276843]
[1752948018786,1.36855563,117910.0,117900.0,0.2395498]
[1752948018986,1.36855563,117910.0,117900.0,0.40276843]
[1752948021789,1.38605762,117910.0,117900.0,0.40276843]
[1752948024495,1.22283899,117910.0,117900.0,0.40276843]
[1752948024694,1.38605762,117910.0,117900.0,0.40276843]
[1752948028696,1.02525762,117910.0,117900.0,0.40276843]
[1752948028892,1.38605762,117910.0,117900.0,0.41896843]
[1752948029894,1.22283899,117910.0,117900.0,0.41896843]
[1752948030100,1.38605762,117910.0,117900.0,0.41896843]
[1752948030497,1.38605762,117910.0,117900.0,0.40276843]
[1752948030794,1.38605762,117910.0,117900.0,0.1695498]
[1752948030994,1.38605762,117910.0,117900.0,0.33276843]
[1752948031295,0.247414,117900.0,117880.0,0.59053423]
[1752948031495,1.00423433,117890.0,117880.0,0.82792093]
[1752948031696,0.43728369,117890.0,117880.0,0.82792093]
[1752948031894,0.85802506,117890.0,117880.0,0.82792093]
[1752948032694,0.85802506,117890.0,117880.0,0.82892093]
[1752948032894,0.27406506,117890.0,117880.0,0.82892093]
[1752948033100,0.85802506,117890.0,117880.0,1.18972093]
[1752948033393,0.85798506,117890.0,117880.0,1.36913956]
[1752948034299,0.85798506,117890.0,117880.0,1.37013956]
[1752948039502,0.85798506,117890.0,117880.0,1.0437023]
[1752948039701,0.85798506,117890.0,117880.0,1.20692093]
[1752948042102,0.85770506,117890.0,117880.0,1.38478956]
[1752948045603,0.27406506,117890.0,117880.0,1.38478956]
[1752948045803,0.85754506,117890.0,117880.0,1.38478956]
[1752948050409,0.85754506,117890.0,117880.0,1.0583523]
[1752948050611,0.85754506,117890.0,117880.0,1.38478956]
[1752948051613,0.85754506,117890.0,117880.0,1.35393956]
[1752948051813,1.02076369,117890.0,117880.0,0.88422736]
[1752948052513,1.02076369,117890.0,117880.0,0.90816736]
[1752948053816,1.02076369,117890.0,117880.0,0.74494873]
[1752948054511,1.02076369,117890.0,117880.0,0.72100873]
[1752948054717,1.38156369,117890.0,117880.0,0.1715901]
[1752948055216,1.38994318,117890.0,117880.0,0.1715901]
[1752948055410,1.38994318,117890.0,117880.0,0.002]
[1752948056917,1.40638434,117890.0,117880.0,0.002]
[1752948057818,1.46735082,117890.0,117880.0,0.002]
[1752948058116,1.46735082,117890.0,117880.0,0.17159]
[1752948058319,1.30413219,117890.0,117880.0,0.17159]
[1752948058518,1.46735082,117890.0,117880.0,0.17159]
[1752948060321,0.87549133,117890.0,117880.0,0.33480863]
[1752948060523,1.45885133,117890.0,117880.0,0.33480863]
[1752948060825,1.45885133,117890.0,117880.0,0.35033863]
[1752948061320,1.45885133,117890.0,117880.0,0.33480863]
[1752948063421,1.09805133,117890.0,117880.0,0.33480863]
[1752948063621,1.03708485,117890.0,117880.0,0.33480863]
[1752948064225,1.39788485,117890.0,117880.0,0.33480863]
[1752948064723,1.03708485,117890.0,117880.0,0.17159]
[1752948065024,1.39788485,117890.0,117880.0,0.33480863]
[1752948065719,1.39788485,117890.0,117880.0,0.17159]
[1752948065918,1.03708485,117890.0,117880.0,0.33480863]
[1752948066724,1.39788485,117890.0,117880.0,0.33480863]
[1752948067923,1.03708485,117890.0,117880.0,0.33480863]
[1752948069523,1.09645485,117890.0,117880.0,0.33480863]
[1752948071124,1.09645485,117890.0,117880.0,0.33480873]
[1752948071726,1.45725485,117890.0,117880.0,0.33480873]
[1752948072929,1.45725485,117890.0,117880.0,0.1715901]
[1752948073130,1.45725485,117890.0,117880.0,0.33480873]